bitfinex-derivatives/quotes_BTCF0:USTF0_20260119
["timestamp","ask_amount","ask_price","bid_price","bid_amount"]
[1768840130723,0.00016095,93233.0,93221.0,0.03565541]
[1768840130922,0.00016095,93233.0,93222.0,0.010732]
[1768840131125,0.00016095,93233.0,93221.0,0.03565541]
[1768840132516,0.01089195,93233.0,93221.0,0.03565541]
[1768840132917,0.00016095,93233.0,93216.0,0.03552205]
[1768840133618,0.00016095,93233.0,93217.0,0.010733]
[1768840133823,0.00016095,93233.0,93218.0,0.03584449]
[1768840134214,0.00016095,93233.0,93219.0,0.010733]
[1768840134612,0.00016095,93233.0,93219.0,0.04657749]
[1768840135923,0.00016095,93233.0,93219.0,0.03584449]
[1768840136913,0.010731,93232.0,93219.0,0.03584449]
[1768840137422,0.010732,93230.0,93219.0,0.03584449]
[1768840137612,0.00016095,93233.0,93219.0,0.03584449]
[1768840137613,0.010731,93232.0,93219.0,0.03584449]
[1768840138017,0.00016095,93233.0,93219.0,0.03584449]
[1768840139222,0.010732,93230.0,93219.0,0.03584449]
[1768840139422,0.01089195,93233.0,93219.0,0.03584449]
[1768840139723,0.010731,93232.0,93219.0,0.03584449]
[1768840140419,0.00016095,93233.0,93219.0,0.03584449]
[1768840140820,0.010732,93229.0,93219.0,0.03584449]
[1768840141217,0.010733,93221.0,93215.0,0.0966]
[1768840141420,0.010732,93228.0,93213.0,0.03453937]
[1768840141624,0.010732,93228.0,93215.0,0.03416727]
[1768840143126,0.00016095,93233.0,93215.0,0.03416727]
[1768840143626,0.00016095,93233.0,93215.0,0.13076727]
[1768840143627,0.010733,93222.0,93215.0,0.13076727]
[1768840143922,0.010732,93226.0,93215.0,0.13076727]
[1768840144226,0.010732,93226.0,93215.0,0.03416727]
[1768840145626,0.00016095,93233.0,93215.0,0.03416727]
[1768840146127,0.010732,93226.0,93215.0,0.03416727]
[1768840146829,0.010732,93229.0,93215.0,0.03416727]
[1768840147024,0.010732,93227.0,93215.0,0.03416727]
[1768840147928,0.00016095,93233.0,93215.0,0.03416727]
[1768840148433,0.010732,93224.0,93215.0,0.03416727]
[1768840149025,0.00016095,93233.0,93215.0,0.03416727]
[1768840149026,0.010732,93227.0,93215.0,0.03416727]
[1768840149233,0.010732,93225.0,93215.0,0.03416727]
[1768840149421,0.010732,93223.0,93215.0,0.03416727]
[1768840152533,0.010733,93221.0,93215.0,0.03416727]
[1768840153531,0.01,93223.0,93215.0,0.03416727]
[1768840153532,0.010733,93220.0,93215.0,0.03416727]
[1768840154231,0.020732,93223.0,93215.0,0.03416727]
[1768840154433,0.01,93223.0,93215.0,2.7e-07]
[1768840155032,0.010733,93220.0,93215.0,2.7e-07]
[1768840155225,0.010733,93222.0,93215.0,2.7e-07]
[1768840155834,0.010733,93222.0,93214.0,0.0966]
[1768840157536,0.01,93223.0,93214.0,0.0966]
[1768840159830,0.01,93223.0,93209.0,0.0023603]
[1768840160636,0.01,93223.0,93209.0,0.0130943]
[1768840161342,0.01,93223.0,93209.0,0.0023603]
[1768840162445,0.01,93223.0,93210.0,0.0966]
[1768840162847,0.010731,93234.0,93210.0,0.0966]
[1768840162848,0.010731,93235.0,93214.0,0.010733]
[1768840163042,0.02297756,93234.0,93215.0,0.010733]
[1768840163239,0.010731,93234.0,93217.0,0.010733]
[1768840163454,0.0966,93239.0,93210.0,0.0966]
[1768840163651,0.02297646,93238.0,93210.0,0.0966]
[1768840163851,0.010731,93234.0,93210.0,0.0966]
[1768840164152,0.02297646,93233.0,93217.0,0.010733]
[1768840164354,0.010731,93234.0,93217.0,0.010733]
[1768840164752,0.010731,93234.0,93215.0,0.01089395]
[1768840165052,0.010731,93233.0,93220.0,0.17966573]
[1768840166450,0.05692211,93237.0,93220.0,0.17966573]
[1768840166653,0.05692211,93228.0,93215.0,0.00016095]
[1768840171059,0.05692211,93228.0,93215.0,0.01089395]
[1768840171259,0.05692211,93233.0,93218.0,0.17966573]
[1768840172060,0.05692211,93233.0,93215.0,0.01089395]
[1768840172353,0.05692211,93233.0,93220.0,0.19039873]
[1768840172549,0.05692211,93233.0,93220.0,0.17966573]
[1768840172957,0.010731,93237.0,93220.0,0.17966573]
[1768840173252,0.05692211,93235.0,93220.0,0.17966573]
[1768840173453,0.02297309,93234.0,93220.0,0.17966573]
[1768840173660,0.06765311,93235.0,93220.0,0.17966573]
[1768840173958,0.010732,93230.0,93220.0,0.17966573]
[1768840174149,0.05692211,93231.0,93220.0,0.17966573]
[1768840180055,0.02669965,93238.0,93220.0,0.17966573]
[1768840180261,0.010731,93235.0,93220.0,0.17966573]
[1768840180459,0.02297103,93234.0,93220.0,0.17966573]
[1768840180761,0.010731,93235.0,93220.0,0.17966573]
[1768840180962,0.02297099,93234.0,93220.0,0.17966573]
[1768840181163,0.010731,93235.0,93220.0,0.17966573]
[1768840181462,0.02297099,93234.0,93220.0,0.17966573]
[1768840181762,0.010731,93235.0,93220.0,0.17966573]
[1768840182068,0.02297102,93234.0,93220.0,0.17966573]
[1768840182360,0.010731,93235.0,93220.0,0.17966573]
[1768840182560,0.02296837,93234.0,93220.0,0.17966573]
[1768840182761,0.05692211,93237.0,93220.0,0.17966573]
[1768840182963,0.06853114,93235.0,93220.0,0.17966573]
[1768840183153,0.02296837,93234.0,93220.0,0.17966573]
[1768840183353,0.05780014,93235.0,93220.0,0.17966573]
[1768840183553,0.02296858,93234.0,93220.0,0.17966573]
[1768840183866,0.05780014,93235.0,93218.0,0.010733]
[1768840184067,0.02296858,93234.0,93220.0,0.17966573]
[1768840184252,0.05780014,93235.0,93215.0,0.00016095]
[1768840184456,0.05780014,93233.0,93220.0,0.17966573]
[1768840187964,0.05780014,93233.0,93216.0,0.010733]
[1768840188365,0.05780014,93233.0,93220.0,0.17966573]
[1768840190363,0.010731,93239.0,93220.0,0.17966573]
[1768840190563,0.02297317,93238.0,93223.0,0.010732]
[1768840190767,0.02297317,93237.0,93223.0,0.010732]
[1768840190970,0.02297317,93236.0,93223.0,0.010732]
[1768840191160,0.02297317,93235.0,93223.0,0.010732]
[1768840191361,0.0229745,93234.0,93223.0,0.010732]
[1768840191661,0.05780014,93240.0,93223.0,0.010732]
[1768840191861,0.08077463,93239.0,93223.0,0.010732]
[1768840192062,0.02297449,93238.0,93223.0,0.010732]
[1768840192367,0.02297449,93237.0,93223.0,0.010732]
[1768840192568,0.02297449,93236.0,93223.0,0.010732]
[1768840192765,0.06853114,93239.0,93223.0,0.010732]
[1768840192966,0.05674434,93236.0,93220.0,0.17966573]
[1768840193166,0.05674434,93234.0,93220.0,0.17966573]
[1768840194573,0.05674434,93234.0,93219.0,0.010733]
[1768840194773,0.05674434,93234.0,93220.0,0.17966573]
[1768840194962,0.010731,93232.0,93220.0,0.17966573]
[1768840195169,0.010732,93229.0,93218.0,0.0966]
[1768840195368,0.05674434,93230.0,93218.0,0.0966]
[1768840195774,0.08316625,93216.0,93205.0,0.0966]
[1768840195973,0.05674434,93214.0,93205.0,0.0966]
[1768840196472,0.05674434,93214.0,93204.0,0.00236041]
[1768840196778,0.05674434,93212.0,93200.0,0.17966573]
[1768840196979,0.05674434,93212.0,93200.0,0.19040073]
[1768840198270,0.05674434,93218.0,93200.0,0.17966573]
[1768840198472,0.05674434,93218.0,93205.0,0.010734]
[1768840200376,0.010733,93217.0,93202.0,0.010735]
[1768840200582,0.05674434,93218.0,93202.0,0.010735]
[1768840200886,0.05674434,93218.0,93204.0,0.010735]
[1768840201386,0.05674434,93218.0,93200.0,0.17966573]
[1768840201684,0.05674434,93218.0,93204.0,0.010734]
[1768840201882,0.010733,93217.0,93200.0,0.17966573]
[1768840202481,0.05674434,93217.0,93198.0,0.0966]
[1768840202674,0.06747734,93217.0,93201.0,0.010735]
[1768840202979,0.05674434,93217.0,93206.0,0.010734]
[1768840203178,0.05674434,93217.0,93203.0,0.010735]
[1768840203378,0.05674434,93217.0,93205.0,0.010734]
[1768840203781,0.05674434,93217.0,93202.0,0.010735]
[1768840204187,0.05674434,93217.0,93204.0,0.010734]
[1768840204380,0.05674434,93217.0,93200.0,0.17966573]
[1768840204684,0.05674434,93217.0,93206.0,0.010734]
[1768840204884,0.05674434,93217.0,93208.0,0.010734]
[1768840205787,0.05674434,93217.0,93205.0,0.010734]
[1768840205978,0.05674434,93217.0,93200.0,0.17966573]
[1768840206687,0.05674434,93217.0,93207.0,0.010734]
[1768840206884,0.05674434,93217.0,93200.0,0.17966573]
[1768840207379,0.05674434,93217.0,93205.0,0.010734]
[1768840207576,0.05674434,93217.0,93200.0,0.17966573]
[1768840207775,0.05674434,93212.0,93200.0,0.28700073]
[1768840207982,0.05674434,93212.0,93200.0,0.27626573]
[1768840208189,0.05674434,93212.0,93201.0,0.010735]
[1768840208389,0.05674434,93212.0,93203.0,0.010735]
[1768840210490,0.05674434,93212.0,93202.0,0.010735]
[1768840210692,0.05674434,93212.0,93203.0,0.010735]
[1768840210990,0.05674434,93212.0,93202.0,0.010735]
[1768840211196,0.05674434,93212.0,93200.0,0.27626573]
[1768840211594,0.05674434,93212.0,93201.0,0.010735]
[1768840211785,0.05674434,93212.0,93200.0,0.27626573]
[1768840211984,0.05674434,93212.0,93203.0,0.010735]
[1768840212791,0.05674434,93212.0,93204.0,0.010734]
[1768840213093,0.05674434,93212.0,93205.0,0.010734]
[1768840213297,0.05674434,93212.0,93200.0,0.27626573]
[1768840213796,0.02642191,93223.0,93213.0,0.010733]
[1768840213993,0.00235991,93224.0,93210.0,0.17966573]
[1768840214291,0.00235991,93224.0,93214.0,0.17966573]
[1768840214490,0.02642191,93227.0,93218.0,0.010733]
[1768840214686,0.00235979,93229.0,93218.0,0.010733]
[1768840214887,0.00235979,93229.0,93223.0,0.010732]
[1768840215186,7.9e-07,93229.0,93228.0,0.010732]
[1768840215388,0.02642191,93238.0,93226.0,0.010732]
[1768840215589,0.08316625,93238.0,93228.0,0.010732]
[1768840216092,0.0966,93241.0,93231.0,0.010731]
[1768840216795,0.15334434,93241.0,93231.0,0.010731]
[1768840217184,0.15334434,93241.0,93228.0,0.010732]
[1768840217490,0.08316625,93240.0,93228.0,0.010732]
[1768840217685,0.05674434,93239.0,93225.0,0.010732]
[1768840217893,0.08316625,93239.0,93225.0,0.010732]
[1768840218092,0.08316625,93238.0,93225.0,0.010732]
[1768840218290,0.08316625,93237.0,93225.0,0.010732]
[1768840218597,0.08316625,93237.0,93222.0,0.010732]
[1768840218897,0.08316625,93237.0,93225.0,0.010732]
[1768840219492,0.05674434,93236.0,93220.0,0.17982668]
[1768840219798,0.08316625,93235.0,93223.0,0.010732]
[1768840219987,0.05674434,93230.0,93223.0,0.010732]
[1768840220386,0.02642191,93229.0,93220.0,0.00016095]
[1768840220598,0.02642191,93229.0,93220.0,0.17746522]
[1768840220804,0.08316625,93230.0,93220.0,0.27406522]
[1768840221004,0.08316625,93230.0,93220.0,0.27626573]
[1768840223707,0.08316625,93230.0,93220.0,0.17966573]
[1768840224403,0.02642191,93230.0,93220.0,0.17966573]
[1768840224607,0.02642191,93230.0,93220.0,0.19039873]
[1768840224797,0.05650503,93236.0,93220.0,0.19039873]
[1768840225605,0.05650503,93236.0,93220.0,0.17966573]
[1768840225997,0.00016095,93236.0,93221.0,0.010733]
[1768840226198,0.00016095,93236.0,93226.0,0.17966573]
[1768840226398,0.00016095,93236.0,93227.0,0.010732]
[1768840227006,0.0966,93241.0,93221.0,0.14306735]
[1768840227201,0.0966,93241.0,93225.0,0.010732]
[1768840227793,0.08121887,93243.0,93222.0,0.00016095]
[1768840227794,0.06707408,93243.0,93222.0,0.05680337]
[1768840228104,0.01073,93240.0,93222.0,0.05680337]
[1768840228303,0.010731,93237.0,93222.0,0.04607137]
[1768840229007,0.01073,93240.0,93222.0,0.05680337]
[1768840229208,0.01073,93240.0,93222.0,0.01089295]
[1768840229404,0.05634408,93242.0,93224.0,0.010732]
[1768840229605,0.02326577,93241.0,93224.0,0.010732]
[1768840229906,0.08121887,93242.0,93224.0,0.010732]
[1768840230107,0.02326577,93241.0,93226.0,0.010732]
[1768840230307,0.08121887,93242.0,93226.0,0.010732]
[1768840230609,0.08121887,93242.0,93228.0,0.010732]
[1768840231407,0.02326591,93241.0,93228.0,0.010732]
[1768840231704,0.08121887,93242.0,93228.0,0.010732]
[1768840231904,0.02326591,93241.0,93228.0,0.010732]
[1768840232107,0.08121887,93242.0,93228.0,0.010732]
[1768840232306,0.08012737,93242.0,93228.0,0.010732]
[1768840232508,0.09085737,93242.0,93225.0,0.010732]
[1768840232808,0.03560479,93242.0,93225.0,0.010732]
[1768840233612,0.03560479,93242.0,93222.0,0.01089295]
[1768840233908,0.02487479,93241.0,93224.0,0.010732]
[1768840234099,0.02487479,93241.0,93226.0,0.010732]
[1768840234511,0.08121887,93241.0,93226.0,0.010732]
[1768840234711,0.08121887,93241.0,93228.0,0.010732]
[1768840235812,0.05634408,93241.0,93231.0,0.010731]
[1768840235998,0.05634408,93241.0,93228.0,0.010732]
[1768840236195,0.05634408,93241.0,93222.0,0.00016095]
[1768840236598,0.05634408,93241.0,93230.0,0.010732]
[1768840238313,0.05634408,93241.0,93222.0,0.00016095]
[1768840238518,0.0023594,93244.0,93234.0,0.010731]
[1768840239012,0.0023594,93244.0,93231.0,0.010731]
[1768840239413,0.0023594,93244.0,93233.0,0.010731]
[1768840239608,0.0130894,93244.0,93229.0,0.010732]
[1768840240219,0.01073,93242.0,93226.0,0.05444595]
[1768840240515,0.01073,93242.0,93226.0,0.010732]
[1768840240716,0.05153628,93257.0,93236.0,0.02980896]
[1768840240907,0.05153628,93251.0,93235.0,0.010731]
[1768840241220,0.05153628,93249.0,93234.0,0.010731]
[1768840241715,0.05153628,93249.0,93226.0,0.02980896]
[1768840242014,0.05153628,93249.0,93228.0,0.03981997]
[1768840242217,0.05153628,93249.0,93239.0,0.01073]
[1768840243017,0.05153628,93248.0,93228.0,0.02908797]
[1768840243215,0.05153628,93248.0,93237.0,0.010731]
[1768840243609,0.05153628,93248.0,93239.0,0.010731]
[1768840245519,0.05153628,93248.0,93241.0,0.01073]
[1768840246010,0.0753297,93253.0,93242.0,0.01073]
[1768840248315,0.0753297,93253.0,93243.0,0.01073]
[1768840248708,0.05153628,93252.0,93243.0,0.01073]
[1768840248910,0.05153628,93252.0,93234.0,0.010731]
[1768840250019,0.05153628,93252.0,93243.0,0.01073]
[1768840251216,0.05153628,93252.0,93244.0,0.01073]
[1768840251613,0.05153628,93252.0,93245.0,0.01073]
[1768840251814,0.05153628,93252.0,93233.0,0.05114458]
[1768840252015,0.0753297,93257.0,93247.0,0.01073]
[1768840252218,0.02303659,93256.0,93247.0,0.01073]
[1768840252421,0.05153628,93254.0,93247.0,0.01073]
[1768840252622,0.05153628,93254.0,93240.0,0.01075053]
[1768840252919,0.05423541,93253.0,93242.0,0.00016086]
[1768840253118,0.05423541,93253.0,93248.0,0.010729]
[1768840253710,0.05423541,93253.0,93250.0,0.010729]
[1768840254010,4.1e-07,93253.0,93250.0,0.010729]
[1768840255522,0.02239671,93258.0,93250.0,0.010729]
[1768840256024,0.07663212,93257.0,93250.0,0.010729]
[1768840256818,0.02239671,93255.0,93242.0,0.00016086]
[1768840257021,0.07663212,93255.0,93242.0,0.00016086]
[1768840257223,0.02239671,93254.0,93245.0,0.01073]
[1768840258117,0.07663212,93254.0,93245.0,0.01073]
[1768840258325,0.02239671,93253.0,93242.0,0.01089086]
[1768840258525,0.02239671,93253.0,93244.0,0.01073]
[1768840258925,0.02239671,93253.0,93242.0,0.00016086]
[1768840259120,0.02239671,93253.0,93242.0,0.01089086]
[1768840259925,0.02239671,93253.0,93242.0,0.00016086]
[1768840263028,0.07663212,93253.0,93242.0,0.00016086]
[1768840263327,0.07663212,93253.0,93242.0,0.01089086]
[1768840263736,0.07663212,93253.0,93242.0,0.00016086]
[1768840264119,0.03312571,93252.0,93242.0,0.00016086]
[1768840264320,0.02239671,93250.0,93242.0,0.00016086]
[1768840268031,0.02239671,93248.0,93239.0,0.01073]
[1768840269027,0.02239671,93248.0,93236.0,0.010731]
[1768840269430,0.02239671,93248.0,93233.0,0.010731]
[1768840269726,0.02239671,93248.0,93232.0,0.0966]
[1768840270635,0.05423541,93249.0,93238.0,0.010731]
[1768840270931,0.05423541,93249.0,93241.0,0.01073]
[1768840271628,0.05423541,93249.0,93242.0,0.01073]
[1768840273030,0.05423541,93234.0,93222.0,0.010732]
[1768840273229,0.02239671,93235.0,93222.0,0.010732]
[1768840273230,4.1e-07,93226.0,93222.0,0.010732]
[1768840273437,0.02239712,93226.0,93219.0,0.010733]
[1768840273734,0.02239712,93226.0,93216.0,0.10736606]
[1768840273735,0.02239671,93226.0,93211.0,0.010734]
[1768840274236,0.02239671,93226.0,93210.0,0.010734]
[1768840274531,0.02239671,93226.0,93217.0,0.010733]
[1768840274734,0.02239671,93226.0,93219.0,0.010733]
[1768840275128,0.02239671,93226.0,93216.0,0.010733]
[1768840276633,0.02239671,93225.0,93209.0,0.0023603]
[1768840276929,0.02239671,93224.0,93209.0,0.0023603]
[1768840277434,0.02239671,93224.0,93212.0,0.010734]
[1768840278332,0.02239671,93224.0,93209.0,0.0023603]
[1768840279436,0.02239671,93222.0,93210.0,0.010734]
[1768840279633,0.02239671,93222.0,93209.0,0.0023603]
[1768840279831,0.02239671,93226.0,93209.0,0.0023603]
[1768840280132,0.02239671,93226.0,93218.0,0.010733]
[1768840280434,0.00016086,93232.0,93209.0,0.0023603]
[1768840280435,0.00016086,93232.0,93213.0,0.07711916]
[1768840280636,0.00016086,93232.0,93228.0,0.010732]
[1768840281333,8.6e-07,93232.0,93230.0,0.010731]
[1768840281529,8.6e-07,93232.0,93221.0,0.02383151]
[1768840281731,8.6e-07,93232.0,93230.0,0.010732]
[1768840282127,8.6e-07,93232.0,93221.0,0.02231351]
[1768840282322,8.6e-07,93232.0,93230.0,0.010732]
[1768840282523,0.02239671,93250.0,93236.0,0.010731]
[1768840282731,0.0966,93249.0,93236.0,0.010731]
[1768840282932,0.12383459,93249.0,93238.0,0.010731]
[1768840283335,0.02723459,93248.0,93238.0,0.010731]
[1768840283534,0.02723459,93248.0,93235.0,0.010731]
[1768840283741,0.02723459,93247.0,93235.0,0.010731]
[1768840283942,0.02723459,93247.0,93238.0,0.010731]
[1768840284639,0.0966,93249.0,93238.0,0.010731]
[1768840284833,0.0966,93249.0,93240.0,0.01073]
[1768840285033,0.0966,93249.0,93242.0,0.01073]
[1768840285933,0.03709872,93254.0,93234.0,0.0275348]
[1768840286131,0.0023589,93264.0,93233.0,0.010731]
[1768840286132,0.0966,93261.0,93249.0,0.010729]
[1768840286437,0.0023589,93264.0,93247.0,0.07961156]
[1768840286939,0.0023589,93264.0,93257.0,0.010728]
[1768840287837,0.0023589,93264.0,93259.0,0.010728]
[1768840288038,9e-07,93264.0,93261.0,0.010728]
[1768840288437,9e-07,93264.0,93256.0,0.010728]
[1768840288637,9e-07,93264.0,93249.0,0.0275348]
[1768840288835,9e-07,93264.0,93257.0,0.010728]
[1768840289037,9e-07,93264.0,93254.0,0.17953334]
[1768840289038,9e-07,93264.0,93259.0,0.010728]
[1768840289340,9e-07,93264.0,93256.0,0.010729]
[1768840291335,9e-07,93264.0,93260.0,0.010728]
[1768840292444,9e-07,93264.0,93254.0,0.20706814]
[1768840292744,0.0966,93272.0,93260.0,0.010728]
[1768840292943,0.0966,93272.0,93260.0,0.19026134]
[1768840293145,0.08164748,93276.0,93260.0,0.17953334]
[1768840293439,0.03796059,93279.0,93260.0,0.17953334]
[1768840293641,0.05723459,93279.0,93260.0,0.20706814]
[1768840293840,0.03796059,93278.0,93260.0,0.17953334]
[1768840294145,0.03,93278.0,93260.0,0.17953334]
[1768840294339,0.08164748,93279.0,93260.0,0.17953334]
[1768840294641,0.05441289,93279.0,93260.0,0.19026134]
[1768840294838,0.03796059,93277.0,93260.0,0.17953334]
[1768840295038,0.03796059,93275.0,93260.0,0.17953334]
[1768840295237,0.02723459,93272.0,93260.0,0.17953334]
[1768840295444,0.02723459,93271.0,93260.0,0.17953334]
[1768840295732,0.02723459,93278.0,93260.0,0.17953334]
[1768840295939,0.05441289,93278.0,93260.0,0.17953334]
[1768840296146,0.011726,93279.0,93260.0,0.21779614]
[1768840296440,0.011726,93279.0,93260.0,0.20706814]
[1768840296441,0.010726,93277.0,93260.0,0.20706814]
[1768840296648,0.03796059,93277.0,93260.0,0.17953334]
[1768840297243,0.010727,93274.0,93260.0,0.17953334]
[1768840297446,0.010727,93272.0,93260.0,0.17953334]
[1768840297647,0.010727,93270.0,93260.0,0.17953334]
[1768840298548,0.03796159,93273.0,93260.0,0.17953334]
[1768840299339,0.010727,93271.0,93260.0,0.17953334]
[1768840299741,0.010727,93272.0,93260.0,0.17953334]
[1768840300544,0.02773143,93280.0,93260.0,0.17953334]
[1768840301044,0.010727,93274.0,93260.0,0.03005836]
[1768840301249,0.010727,93274.0,93260.0,0.2095917]
[1768840303345,0.010726,93277.0,93260.0,0.2095917]
[1768840303951,0.02773143,93280.0,93260.0,0.2095917]
[1768840303952,0.010726,93276.0,93260.0,0.2095917]
[1768840304452,0.010726,93275.0,93260.0,0.03005836]
[1768840304652,0.010726,93275.0,93260.0,0.2095917]
[1768840305948,0.010726,93277.0,93263.0,0.03005836]
[1768840306158,0.010726,93277.0,93264.0,0.03005836]
[1768840306756,0.010726,93279.0,93264.0,0.03005836]
[1768840307056,0.0966,93281.0,93264.0,0.03005836]
[1768840307255,0.010726,93275.0,93264.0,0.03005836]
[1768840307953,0.03008982,93284.0,93265.0,0.2095917]
[1768840308140,0.00235839,93284.0,93274.0,0.17953334]
[1768840308343,0.00235839,93284.0,93272.0,0.08847534]
[1768840308544,0.00235839,93284.0,93273.0,0.03005836]
[1768840308954,0.00235839,93284.0,93270.0,0.20975256]
[1768840309157,0.00235839,93284.0,93270.0,0.1796942]
[1768840309759,0.010726,93278.0,93270.0,0.1796942]
[1768840310861,0.010726,93278.0,93267.0,0.05841698]
[1768840310862,0.010727,93273.0,93267.0,0.04156243]
[1768840311055,0.010727,93273.0,93266.0,0.03005836]
[1768840311251,0.010726,93275.0,93266.0,0.03005836]
[1768840312255,0.00016086,93280.0,93265.0,0.17953334]
[1768840312453,0.00016086,93280.0,93270.0,0.17953334]
[1768840312958,0.00016086,93280.0,93270.0,3.4e-07]
[1768840313156,0.00016086,93280.0,93263.0,0.03005836]
[1768840313460,0.010727,93274.0,93263.0,0.03005836]
[1768840313957,0.010727,93269.0,93260.0,0.17953334]
[1768840314157,0.010726,93275.0,93257.0,0.12653977]
[1768840314347,0.09372998,93274.0,93257.0,0.09656]
[1768840315461,0.09372998,93273.0,93260.0,0.17953334]
[1768840315754,0.0618329,93273.0,93257.0,0.09656]
[1768840315958,0.010727,93270.0,93252.0,0.02997977]
[1768840316162,0.10445698,93271.0,93252.0,0.04070877]
[1768840316460,0.010727,93269.0,93252.0,0.04070877]
[1768840316757,0.010727,93269.0,93252.0,0.02997977]
[1768840317061,0.010727,93267.0,93252.0,0.02997977]
[1768840317759,0.010727,93270.0,93252.0,0.02997977]
[1768840318550,0.09656,93277.0,93260.0,0.17953334]
[1768840318551,0.03189708,93275.0,93260.0,0.17953334]
[1768840318760,0.19028998,93277.0,93260.0,0.17953334]
[1768840318963,0.19028998,93277.0,93261.0,0.010728]
[1768840319450,0.19028998,93277.0,93263.0,0.010728]
[1768840319659,0.19028998,93277.0,93261.0,0.010728]
[1768840319963,0.00016086,93280.0,93267.0,0.010727]
[1768840320158,0.02345727,93279.0,93266.0,0.02997977]
[1768840320463,0.00016086,93280.0,93269.0,0.17953334]
[1768840320653,0.02345991,93279.0,93269.0,0.17953334]
[1768840320854,0.02345991,93278.0,93269.0,0.17953334]
[1768840321053,0.00016086,93280.0,93269.0,0.17953334]
[1768840321253,0.02346344,93279.0,93269.0,0.17953334]
[1768840321551,0.09891839,93284.0,93274.0,0.010726]
[1768840322858,0.09891839,93284.0,93276.0,0.010726]
[1768840323362,0.09891839,93284.0,93274.0,0.17953334]
[1768840323664,0.09891839,93284.0,93273.0,0.010727]
[1768840324261,0.07723109,93303.0,93290.0,0.08984233]
[1768840324557,0.010723,93308.0,93291.0,0.02997977]
[1768840324762,0.050723,93308.0,93291.0,0.02997977]
[1768840325459,0.010723,93302.0,93290.0,0.17969411]
[1768840325652,0.010723,93305.0,93290.0,0.17969411]
[1768840325852,0.010723,93308.0,93292.0,0.02997977]
[1768840326060,0.010723,93308.0,93292.0,0.08984233]
[1768840326260,0.010723,93306.0,93294.0,0.02997977]
[1768840327359,0.01243865,93309.0,93294.0,0.02997977]
[1768840327559,0.010723,93305.0,93294.0,0.02997977]
[1768840328657,0.010723,93306.0,93294.0,0.02997977]
[1768840329265,0.010722,93309.0,93294.0,0.02997977]
[1768840329460,0.010722,93309.0,93297.0,0.02997977]
[1768840330062,0.010722,93309.0,93296.0,0.05986256]
[1768840330259,0.011722,93309.0,93296.0,0.05986256]
[1768840331064,0.010724,93298.0,93290.0,0.00016077]
[1768840331363,0.03189708,93301.0,93286.0,0.09656]
[1768840331759,0.010723,93302.0,93286.0,0.09656]
[1768840332157,0.010723,93302.0,93290.0,0.17953334]
[1768840332665,0.03189708,93304.0,93286.0,0.09656]
[1768840332869,0.04262108,93298.0,93283.0,0.09656]
[1768840333458,0.010724,93298.0,93283.0,0.09656]
[1768840333767,0.010724,93296.0,93283.0,0.09656]
[1768840333969,0.03189708,93301.0,93283.0,0.09656]
[1768840334160,0.010724,93298.0,93283.0,0.09656]
[1768840335171,0.010724,93296.0,93283.0,0.09656]
[1768840335772,0.010724,93299.0,93283.0,0.09656]
[1768840336072,0.010724,93297.0,93283.0,0.09656]
[1768840336273,0.03189708,93302.0,93283.0,0.09656]
[1768840336972,0.010724,93298.0,93283.0,0.09656]
[1768840337576,0.010724,93298.0,93280.0,0.20951311]
[1768840337868,0.010725,93288.0,93281.0,0.02997977]
[1768840338076,0.010725,93288.0,93280.0,0.2393959]
[1768840338281,0.010725,93291.0,93280.0,0.2393959]
[1768840339079,0.010725,93291.0,93280.0,0.17953334]
[1768840339459,0.010725,93288.0,93279.0,0.09652]
[1768840339666,0.03189708,93290.0,93272.0,0.09652]
[1768840340071,0.010725,93286.0,93272.0,0.02997977]
[1768840340273,0.010725,93286.0,93269.0,0.05986256]
[1768840340274,0.010725,93286.0,93269.0,0.08984233]
[1768840340472,0.010725,93286.0,93271.0,0.02997977]
[1768840340673,0.010725,93286.0,93272.0,0.02997977]
[1768840341072,0.001,93290.0,93273.0,0.010727]
[1768840341277,0.001,93290.0,93280.0,0.17953334]
[1768840341477,0.107244,93293.0,93280.0,0.17953334]
[1768840342280,0.09652,93293.0,93280.0,0.17953334]
[1768840342479,0.09652,93294.0,93282.0,0.02997977]
[1768840343573,0.00016077,93295.0,93283.0,0.03667357]
[1768840343771,0.09668077,93295.0,93283.0,0.03667357]
[1768840343972,0.09668077,93295.0,93284.0,0.03667357]
[1768840344172,0.09668077,93295.0,93285.0,0.03667357]
[1768840344572,0.10740477,93295.0,93284.0,0.06730048]
[1768840344880,0.09668077,93295.0,93282.0,0.03667357]
[1768840345086,0.09668077,93295.0,93284.0,0.03667357]
[1768840345271,0.09668077,93295.0,93284.0,0.10397405]
[1768840347578,0.09668077,93295.0,93279.0,0.03667357]
[1768840347777,0.03589207,93293.0,93272.0,0.03667357]
[1768840347973,0.03589207,93293.0,93273.0,0.03667357]
[1768840348173,0.03589207,93293.0,93274.0,0.03667357]
[1768840348379,0.09668077,93295.0,93279.0,0.03667357]
[1768840348585,0.010725,93291.0,93279.0,0.03667357]
[1768840348883,0.09668077,93295.0,93279.0,0.03667357]
[1768840349685,0.010725,93292.0,93279.0,0.03667357]
[1768840350084,0.010725,93290.0,93279.0,0.03667357]
[1768840350487,0.010725,93289.0,93279.0,0.03667357]
[1768840350786,0.010725,93288.0,93279.0,0.03667357]
[1768840350988,0.010725,93285.0,93279.0,0.03667357]
[1768840351686,0.010725,93287.0,93279.0,0.03667357]
[1768840352286,0.010725,93291.0,93279.0,0.03667357]
[1768840352479,0.010725,93291.0,93279.0,0.10397405]
[1768840352788,0.010725,93290.0,93279.0,0.10397405]
[1768840352986,0.010725,93289.0,93279.0,0.10397405]
[1768840353187,0.010725,93287.0,93281.0,0.03667357]
[1768840353487,0.010725,93289.0,93280.0,0.06730048]
[1768840353873,0.010725,93289.0,93260.0,0.17946113]
[1768840353874,0.06582514,93281.0,93262.0,0.07727951]
[1768840354077,0.10171721,93280.0,93261.0,0.010728]
[1768840354277,0.010726,93277.0,93262.0,0.09652]
[1768840354484,0.10171721,93278.0,93252.0,0.010729]
[1768840354675,0.010727,93270.0,93251.0,0.010729]
[1768840354881,0.010727,93271.0,93252.0,0.09652]
[1768840355093,0.00016077,93274.0,93258.0,0.010728]
[1768840355292,0.09652,93284.0,93252.0,0.09652]
[1768840355475,0.09652,93293.0,93252.0,0.09652]
[1768840355784,0.02307828,93292.0,93269.0,0.00235878]
[1768840356088,0.02307828,93291.0,93275.0,0.03667357]
[1768840356389,0.09652,93293.0,93269.0,0.00235878]
[1768840356390,0.010725,93288.0,93271.0,0.03667357]